Workbook

Sheet Special Schools Budgets 2017-18
A2: Special School Budgets
C4: Planned Places FY 2017/18 | G4: Forecast Pupil Numbers 2017/18 | J4: Indicative Top Up Funding FY 2017/18 | O4: Actual Pupil Numbers 2017/18 | R4: Actual Top Up Funding FY 2017/18 | V4: Top Up Funding Adjustment 2017/18 | Y4: Estimate of additional place Funding 2017/18 to be paid by the LA | AC4: Actual additional place funding based on filled places | AG4: Additional Place Funding Adjustment 2017/18 | AJ4: BSF/PFI Funding | AK4: Total Indicative School Budget 2017-18 | AL4: Total Revised School Budget 2017-18
A5: Passcode | B5: School | C5: April-Aug 2017 | D5: Sept-Mar 2017/18 | E5: Composite Fin Yr Places | F5: Total Funding for EFA published places | G5: Summer Term | H5: Autumn Term | I5: Spring Term | J5: Top Up Funding Per Pupil Per Annum | K5: Summer Term | L5: Autumn Term | M5: Spring Term | N5: Total Top Up Funding | O5: Summer Term | P5: Autumn Term | Q5: Spring Term | R5: Summer Term | S5: Autumn Term | T5: Spring Term | U5: Total Actual Top Up Funding | V5: Summer Term | W5: Autumn Term | X5: Spring Term | Y5: Summer Term | Z5: Autumn Term | AA5: Spring Term | AB5: Estimated additional place funding | AC5: Summer Term | AD5: Autumn Term | AE5: Spring Term | AF5: Total Actual Additional Place funding | AG5: Summer Term | AH5: Autumn Term | AI5: Spring Term
B6: =IF(ISNA(VLOOKUP(A6,'LA Data view'!A:C,3,0)),"Please enter your 8 digit passcode in cell A6",VLOOKUP(A6,'LA Data view'!A:C,3,0)) -> Please enter your 8 digit passcode in cell A6 | C6: =SUMIF('LA Data view'!$A$6:$A$10,$A$6,'LA Data view'!D$6:D$10) -> 0 | D6: =SUMIF('LA Data view'!$A$6:$A$10,'Special Schools Budgets 2017-18'!$A$6,'LA Data view'!E$6:E$10) -> 0 | E6: =SUMIF('LA Data view'!$A$6:$A$10,'Special Schools Budgets 2017-18'!$A$6,'LA Data view'!F$6:F$10) -> 0 | F6: =E6*10000 -> 0 | G6: =SUMIF('LA Data view'!$A$6:$A$10,'Special Schools Budgets 2017-18'!$A$6,'LA Data view'!H$6:H$10) -> 0 | H6: =SUMIF('LA Data view'!$A$6:$A$10,'Special Schools Budgets 2017-18'!$A$6,'LA Data view'!I$6:I$10) -> 0 | I6: =SUMIF('LA Data view'!$A$6:$A$10,'Special Schools Budgets 2017-18'!$A$6,'LA Data view'!J$6:J$10) -> 0 | J6: =SUMIF('LA Data view'!$A$6:$A$10,'Special Schools Budgets 2017-18'!$A$6,'LA Data view'!K$6:K$10) -> 0 | K6: =G6*J6*66/198 -> 0 | L6: =H6*J6*78/198 -> 0 | M6: =I6*J6*54/198 -> 0 | N6: =SUM(K6:M6) -> 0 | O6: =SUMIF('LA Data view'!$A$6:$A$10,'Special Schools Budgets 2017-18'!$A$6,'LA Data view'!P$6:P$10) -> 0 | P6: =SUMIF('LA Data view'!$A$6:$A$10,'Special Schools Budgets 2017-18'!$A$6,'LA Data view'!Q$6:Q$10) -> 0 | Q6: =SUMIF('LA Data view'!$A$6:$A$10,'Special Schools Budgets 2017-18'!$A$6,'LA Data view'!R$6:R$10) -> 0 | R6: =O6*J6*66/192 -> 0 | S6: =P6*J6*72/192 -> 0 | T6: =Q6*J6*54/192 -> 0 | U6: =SUM(R6:T6) -> 0 | V6: =SUMIF('LA Data view'!$A$6:$A$10,'Special Schools Budgets 2017-18'!$A$6,'LA Data view'!W$6:W$10) -> 0 | W6: =SUMIF('LA Data view'!$A$6:$A$10,'Special Schools Budgets 2017-18'!$A$6,'LA Data view'!X$6:X$10) -> 0 | X6: =SUMIF('LA Data view'!$A$6:$A$10,'Special Schools Budgets 2017-18'!$A$6,'LA Data view'!Y$6:Y$10) -> 0 | Y6: =SUMIF('LA Data view'!$A$6:$A$10,'Special Schools Budgets 2017-18'!$A$6,'LA Data view'!Z$6:Z$10) -> 0 | Z6: =SUMIF('LA Data view'!$A$6:$A$10,'Special Schools Budgets 2017-18'!$A$6,'LA Data view'!AA$6:AA$10) -> 0 | AA6: =SUMIF('LA Data view'!$A$6:$A$10,'Special Schools Budgets 2017-18'!$A$6,'LA Data view'!AB$6:AB$10) -> 0 | AB6: =SUM(Y6:AA6) -> 0 | AC6: =SUMIF('LA Data view'!$A$6:$A$10,'Special Schools Budgets 2017-18'!$A$6,'LA Data view'!AD$6:AD$10) -> 0 | AD6: =SUMIF('LA Data view'!$A$6:$A$10,'Special Schools Budgets 2017-18'!$A$6,'LA Data view'!AE$6:AE$10) -> 0 | AE6: =SUMIF('LA Data view'!$A$6:$A$10,'Special Schools Budgets 2017-18'!$A$6,'LA Data view'!AF$6:AF$10) -> 0 | AF6: =SUMIF('LA Data view'!$A$6:$A$10,'Special Schools Budgets 2017-18'!$A$6,'LA Data view'!AH$6:AH$10) -> 0 | AG6: =SUMIF('LA Data view'!$A$6:$A$10,'Special Schools Budgets 2017-18'!$A$6,'LA Data view'!AH$6:AH$10) -> 0 | AH6: =SUMIF('LA Data view'!$A$6:$A$10,'Special Schools Budgets 2017-18'!$A$6,'LA Data view'!AI$6:AI$10) -> 0 | AI6: =SUMIF('LA Data view'!$A$6:$A$10,'Special Schools Budgets 2017-18'!$A$6,'LA Data view'!AJ$6:AJ$10) -> 0 | AJ6: =SUMIF('LA Data view'!$A$6:$A$10,'Special Schools Budgets 2017-18'!$A$6,'LA Data view'!AK$6:AK$10) -> 0 | AK6: =F6+N6+AB6+AJ6 -> 0 | AL6: =F6+K6+L6+M6+V6+Y6+Z6+AA6+AG6+AH6+AI6+AJ6+W6+X6 -> 0
A9: Notes
A11: 1. Insert your passcode in cell A6 - this will populate your schools data.
A12: 2. Cell F6 shows the total place funding that will be given to your school from the EFA.
A13: 3. Cells K6 to M6 show the estimated top up funding each term and cells R6 to T6 show the actual top up funding for the term. The difference between the estimated and actual top up funding will be added or deducted from the following terms estimated top up payment for academies or adjusted on maintained schools budget (this will also be reflected on maintained schools budget share letters.)
A14: 4. Cell AB6 shows the additional place funding that will be funded by the Local Authority.
A15: 5. Cell AK6 shows the total estimated funding for the year as at 1st April 2017.
A16: 6. Cell AL6 shows the revised total estimated funding for the year based on the actual funding to date plus the remaining estimated funding for the year.
A17: 7. Refer the "Payments&Budget adjustments" tab for a breakdown of the payments made to your school during the financial year 2017/18.
A19: For your information
A21: Each time a payment is sent to your school a revised version of the file will be uploaded and we will notify you via Scene when this has occurred.
A23: Please note - we have had to make a correction to the number of school days per term compared to those used in the indicative budgets which has affected the apportionment of the annual top-up value by term slightly. This means you will see an increase in top up funding in spring compared to the estimate even if the pupil numbers are exactly as forecast.

Sheet Payments&Budget adjustments
A2: DFE number | B2: Academy | C2: Approximate date paid/Virement processed for maintained schools | D2: Place Funding | E2: Estimated Top Up Funding Summer Term | F2: Adjustment to Summer Term Top Up Funding | G2: Estimated Top Up Funding Autumn Term | H2: Adjustment to Top Up Funding Autumn Term | I2: Estimated Top Up Funding Spring Term | J2: Adjustment to Spring Term Top Up Funding | K2: Total paid to Academy/Budget Share Letter

Sheet Data (hidden)
C2: PLANNED PLACES as published by EFA | G2: FORECAST PUPIL NUMBERS | J2: TOP UP FUNDING | P2: ESTIMATE OF ADDITIONAL PLACE FUNDING to be provided by LA
A3: DFE NO | B3: SCHOOL | C3: April-Aug | D3: Sept-Mar | E3: Composite Fin Yr Places | F3: PLACE FUNDING | G3: Summer Term | H3: Autumn Term | I3: Spring Term | J3: Top Up Funding Per Pupil Per Annum | K3: Summer Term | L3: Autumn Term | M3: Spring Term | N3: TOP UP FUNDING | P3: Summer Term | Q3: Autumn Term | R3: Spring Term | S3: ESTIMATED ADDITIONAL PLACE FUNDING | T3: BSF/PFI FUNDING | U3: Other | V3: TOTAL INDICATIVE SCHOOL BUDGET 2015/16 | X3: TOTAL INDICATIVE SCHOOL BUDGET 2014/15 | Y3: Forecast Budget Increase/ (Decrease)
C4: (5/12) | D4: (7/12) | G4: 5/12) | H4: (4/12) | I4: (3/12)
A6: 7040 | B6: WESTBURY SPECIAL SCHOOL | C6: 61 | D6: 61 | E6: 61 | F6: 610000 | G6: 61 | H6: 61 | I6: 61 | J6: 14627.58511 | K6: 371784.4549 | L6: 297427.5639 | M6: 223070.6729 | N6: 892282.6917 | S6: 0 | V6: 1502282.692 | X6: 1378165.814 | Y6: 124116.8776
A7: 7026 | B7: NETHERGATE SCHOOL | C7: 96 | D7: 101 | E7: 98.91666667 | F7: 989166.6667 | G7: 104 | H7: 108 | I7: 110 | J7: 6662 | K7: 288686.6667 | L7: 239832 | M7: 183205 | N7: 711723.6667 | P7: 33333.33333 | Q7: 23333.33333 | R7: 22500 | S7: 79166.66667 | V7: 1780057 | X7: 1362992.025 | Y7: 417064.9746
A8: 7035 | B8: ROSEHILL SPECIAL SCHOOL | C8: 108 | D8: 110 | E8: 109.1666667 | F8: 1091666.667 | G8: 103 | H8: 107 | I8: 110 | J8: 11209.28616 | K8: 481065.1977 | L8: 399797.873 | M8: 308255.3694 | N8: 1189118.44 | S8: 0 | T8: 122587 | V8: 2403372.107 | X8: 2304482.08 | Y8: 98890.02687
A9: 7033 | B9: WOODLANDS SPECIAL SCHOOL | C9: 59 | D9: 59 | E9: 59 | F9: 590000 | G9: 59 | H9: 53 | I9: 55 | J9: 9951.572632 | K9: 244642.8272 | L9: 175811.1165 | M9: 136834.1237 | N9: 557288.0674 | S9: 0 | V9: 1147288.067 | X9: 1144504.964 | Y9: 2783.103348
A10: 7042 | B10: OAK FIELD SPECIAL SCHOOL | C10: 160 | D10: 160 | E10: 160 | F10: 1600000 | G10: 159 | H10: 158 | I10: 160 | J10: 9501.948143 | K10: 629504.0644 | L10: 500435.9355 | M10: 380077.9257 | N10: 1510017.926 | S10: 0 | T10: 667927 | V10: 3777944.926 | X10: 3786974.279 | Y10: -9029.353011
F11: 4880833.333 | N11: 4860430.792 | P11: 33333.33333 | Q11: 23333.33333 | R11: 22500 | S11: 79166.66667 | T11: 790514 | V11: 10610944.79 | X11: 9977119.162 | Y11: 633825.6293

Sheet LA Data view (hidden)
A1: M:\Finance7\PLANNING & PROJECTS\School Budgets\2017-18\High Needs\Special School Budgets 2017-18.xlsx | S1: Days in term
A2: 2017-2018 (For Indicicatives) | S2: 66 | T2: 72 | U2: 54
D4: Planned Places FY 2017/18 | H4: Forecast Pupil Numbers 2017/18 | K4: Estimated Top Up Funding 2017/18 | P4: Actual Pupil Numbers 2017/18 | S4: Actual Top Up Funding 2017/18 | W4: Top Up Funding Adjustment 2017/18 | Z4: Estimate of additional place Funding 2017/18 to be paid by the LA | AD4: Actual additional place funding based on filled places | AH4: Additional Place Funding Adjustment 2017/18 | AK4: BSF/PFI Funding | AL4: Total Indicative School Budget 2017-18 | AM4: Total Adjusted School Budget 2017-18
A5: Passcode | B5: DfE | C5: School | D5: April-Aug (5/12) | E5: Sept-Mar (7/12) | F5: Composite Fin Yr Places | G5: Total Place Funding Given out by the EFA | H5: Summer Term | I5: Autumn Term | J5: Spring Term | K5: Top Up Funding Per Pupil Per Annum | L5: Summer Term | M5: Autumn Term | N5: Spring Term | O5: Total Top Up Funding | P5: Summer Term | Q5: Autumn Term | R5: Spring Term | S5: Summer Term | T5: Autumn Term | U5: Spring Term | V5: Total Actual Top Up Funding | W5: Summer Term | X5: Autumn Term | Y5: Spring Term | Z5: Summer Term | AA5: Autumn Term | AB5: Spring Term | AC5: Estimated additional place funding | AD5: Summer Term | AE5: Autumn Term | AF5: Spring Term | AG5: Total Actual Additional Place funding | AH5: Summer Term | AI5: Autumn Term | AJ5: Spring Term
A6: 7040gxws | B6: 7040 | C6: WESTBURY SPECIAL SCHOOL | D6: 67 | E6: 76 | F6: 72.25 | G6: 722500 | H6: 64 | I6: 72.2 | J6: 72.2 | K6: 14627.58511 | L6: 312055.149 | M6: 416043.9813 | N6: 288030.4486 | O6: 1016129.579 | P6: =[1]Westbury!$J$80 -> 70.92424242 | Q6: =[2]Westbury!$J$96 -> 76.02777778 | R6: =[3]Westbury!$J$87 -> 74.42592593 | S6: =P6*$K6*S$2/192 -> 356623.5724 | T6: =Q6*$K6*T$2/192 -> 417038.5463 | U6: 306188.8779 | V6: =SUM(S6:U6) -> 1079850.997 | W6: =S6-L6 -> 44568.42338 | X6: =IF(T6=0,0,T6-M6) -> 994.5649724 | Y6: =IF(U6=0,0,U6-N6) -> 18158.42928 | AC6: =SUM(Z6:AB6) -> 0 | AG6: =SUM(AD6:AF6) -> 0 | AH6: =AD6-Z6 -> 0 | AL6: =G6+O6+AC6+AK6 -> 1738629.579 | AM6: =+SUM(G6,L6:N6,W6:Y6,Z6:AB6,AH6:AJ6,AK6) -> 1802350.997
A7: 7026waXR | B7: 7026 | C7: NETHERGATE SCHOOL | D7: 105 | E7: 112 | F7: 109.0833333 | G7: 1090833.333 | H7: 107 | I7: 106.4 | J7: 106.4 | K7: 6662 | L7: 237611.3333 | M7: 279238.7394 | N7: 193319.1273 | O7: 710169.2 | P7: ='[4] Nethergate'!$J$115 -> 106 | Q7: ='[5] Nethergate'!$J$132 -> 102.5833333 | R7: ='[6] Nethergate'!$J$112 -> 103 | S7: =P7*$K7*S$2/192 -> 242746.625 | T7: =Q7*$K7*T$2/192 -> 256278.8125 | U7: =R7*$K7*U$2/192 -> 192989.8125 | V7: =SUM(S7:U7) -> 692015.25 | W7: 5135.291667 | X7: =IF(T7=0,0,T7-M7) -> -22959.92689 | Y7: -329.3147727 | Z7: =7*10000*5/12 -> 29166.66667 | AC7: =SUM(Z7:AB7) -> 29166.66667 | AD7: =7*10000*5/12 -> 29166.66667 | AG7: =SUM(AD7:AF7) -> 29166.66667 | AH7: =AD7-Z7 -> 0 | AL7: =G7+O7+AC7+AK7 -> 1830169.2 | AM7: =+SUM(G7,L7:N7,W7:Y7,Z7:AB7,AH7:AJ7,AK7) -> 1812015.25
A8: 7035tAdH | B8: 7035 | C8: ROSEHILL SPECIAL SCHOOL | D8: 110 | E8: 110 | F8: 110 | G8: 1100000 | H8: 99 | I8: 104.5 | J8: 104.5 | K8: 11209.28616 | L8: 369906.4433 | M8: 461448.9469 | N8: 319464.6556 | O8: 1150820.046 | P8: ='[7] Nethergate'!$J$111 -> 104.6515152 | Q8: =[8]Rosehill!$J$123 -> 108.875 | R8: =[9]Rosehill!$J$115 -> 110 | S8: =P8*$K8*S$2/192 -> 403242.3933 | T8: 457654.1365 | U8: 346787.2906 | V8: 1207683.82 | W8: 33335.94999 | X8: -3794.810419 | Y8: 27322.63502 | AC8: =SUM(Z8:AB8) -> 0 | AG8: 0 | AH8: 0 | AK8: 123402 | AL8: =G8+O8+AC8+AK8 -> 2374222.046 | AM8: =+SUM(G8,L8:N8,W8:Y8,Z8:AB8,AH8:AJ8,AK8) -> 2431085.82 | AO8: sent on bs
A9: 7033Jgem | B9: 7033 | C9: WOODLANDS SPECIAL SCHOOL | D9: 65 | E9: 68 | F9: 66.75 | G9: 667500 | H9: 65 | I9: 64.6 | J9: 64.6 | K9: 9951.572632 | L9: 215617.407 | M9: 253252.4453 | N9: 175328.616 | O9: 644198.4684 | P9: =[10]Woodlands!$J$72 -> 66 | Q9: =[11]Woodlands!$J$85 -> 64.31944444 | R9: =[12]Woodlands!$J$71 -> 66.44444444 | S9: 225776.3041 | T9: 240029.8586 | U9: 185970.0136 | V9: 651776.1763 | W9: 10158.89706 | X9: -13222.5867 | Y9: 10641.39755 | AC9: =SUM(Z9:AB9) -> 0 | AG9: 0 | AH9: 0 | AL9: 1311698.468 | AM9: 1319276.176
A10: 7042NwsN | B10: 7042 | C10: OAK FIELD SPECIAL SCHOOL | D10: 160 | E10: 160 | F10: 160 | G10: 1600000 | H10: 155 | I10: 152 | J10: 152 | K10: 9501.948143 | L10: 490933.9874 | M10: 568965.1373 | N10: 393898.9412 | O10: 1453798.066 | P10: ='[13] Nethergate'!$J$163 -> 153.1424242 | Q10: =[14]OakField!$J$177 -> 155.6305556 | R10: =[15]OakField!$J$165 -> 156.2925926 | S10: =P10*$K10*S$2/192 -> 500208.2847 | T10: 554547.5506 | U10: 417679.9059 | V10: 1472435.741 | W10: =S10-L10 -> 9274.297302 | X10: -14417.58666 | Y10: 23780.96472 | AC10: =SUM(Z10:AB10) -> 0 | AG10: 0 | AH10: 0 | AK10: 671839 | AL10: 3725637.066 | AM10: 3744274.741 | AO10: sent on bs
G11: 5180833.333 | O11: 4975115.359 | P11: =SUM(P6:P10) -> 500.7181818 | Q11: =SUM(Q6:Q10) -> 507.4361111 | R11: 510.162963 | S11: =SUM(S6:S10) -> 1728597.179 | T11: =SUM(T6:T10) -> 1925548.905 | U11: 1449615.9 | V11: 5103761.984 | W11: =SUM(W6:W10) -> 102472.8594 | X11: =SUM(X6:X10) -> -53400.3457 | Y11: 79574.1118 | Z11: =SUM(Z6:Z10) -> 29166.66667 | AA11: =SUM(AA6:AA10) -> 0 | AB11: =SUM(AB6:AB10) -> 0 | AC11: =SUM(AC6:AC10) -> 29166.66667 | AD11: =SUM(AD6:AD10) -> 29166.66667 | AG11: =SUM(AG6:AG10) -> 29166.66667 | AH11: =SUM(AH6:AH10) -> 0 | AI11: =SUM(AI6:AI10) -> 0 | AJ11: =SUM(AJ6:AJ10) -> 0 | AK11: =SUM(AK6:AK10) -> 795241 | AL11: 10980356.36 | AM11: =SUM(AM6:AM10) -> 11109002.98
AL15: =1835304-1812345 -> 22959

Sheet Payments-budget adjustments sum (hidden)
A2: DFE number | B2: Academy | C2: Approximate date paid/Virement processed for maintained schools | D2: Place Funding + BSI/PFI Funding | E2: Estimated Top Up Funding Summer Term | F2: Adjustment to Summer Term Top Up Funding | G2: Estimated Top Up Funding Autumn Term | H2: Adjustment to Top Up Funding Autumn Term | I2: Estimated Top Up Funding Spring Term | J2: Adjustment to Spring Term Top Up Funding | K2: Total paid to Academy/Budget Share Letter
A3: 7040 | B3: WESTBURY SPECIAL SCHOOL | C3: 2017-05-01 | E3: ='LA Data view'!L6 -> 312055.149 | K3: =SUM(D3:J3) -> 312055.149
A4: 7040 | B4: WESTBURY SPECIAL SCHOOL | C4: 2017-09-01 | F4: ='LA Data view'!W6 -> 44568.42338 | G4: ='LA Data view'!M6 -> 416043.9813 | K4: =SUM(D4:J4) -> 460612.4047
A5: 7040 | B5: WESTBURY SPECIAL SCHOOL | C5: 2018-01-01 | H5: =+'LA Data view'!X6 -> 994.5649724 | I5: ='LA Data view'!N6 -> 288030.4486 | K5: =SUM(D5:J5) -> 289025.0136
A6: 7040 | B6: WESTBURY SPECIAL SCHOOL | C6: 2018-03-01 | J6: =+'LA Data view'!Y6 -> 18158.42928 | K6: =SUM(D6:J6) -> 18158.42928
A7: 7026 | B7: NETHERGATE SCHOOL | C7: 2017-05-01 | D7: ='LA Data view'!Z7 -> 29166.66667 | E7: ='LA Data view'!L7 -> 237611.3333 | K7: =SUM(D7:J7) -> 266778
A8: 7026 | B8: NETHERGATE SCHOOL | C8: 2017-09-01 | F8: ='LA Data view'!W7 -> 5135.291667 | G8: ='LA Data view'!M7 -> 279238.7394 | K8: =SUM(D8:J8) -> 284374.0311
A9: 7026 | B9: NETHERGATE SCHOOL | C9: 2018-01-01 | H9: =+'LA Data view'!X7 -> -22959.92689 | I9: ='LA Data view'!N7 -> 193319.1273 | K9: 170359.2004
A10: 7026 | B10: NETHERGATE SCHOOL | C10: 2018-03-01 | J10: =+'LA Data view'!Y7 -> -329.3147727 | K10: -329.3147727
A11: 7035 | B11: ROSEHILL SPECIAL SCHOOL | C11: 2017-05-01 | D11: ='LA Data view'!G8+'LA Data view'!AK8 -> 1223402 | E11: ='LA Data view'!O8 -> 1150820.046 | K11: =SUM(D11:J11) -> 2374222.046
A12: 7035 | B12: ROSEHILL SPECIAL SCHOOL | C12: 2017-09-01 | F12: ='LA Data view'!W8 -> 33335.94999 | K12: 33335.94999
A13: 7035 | B13: ROSEHILL SPECIAL SCHOOL | C13: 2018-01-01 | H13: =+'LA Data view'!X8 -> -3794.810419 | K13: -3794.810419
A14: 7035 | B14: ROSEHILL SPECIAL SCHOOL | C14: 2018-03-01 | J14: =+'LA Data view'!Y8 -> 27322.63502 | K14: 27322.63502
A15: 7033 | B15: WOODLANDS SPECIAL SCHOOL | C15: 2017-05-01 | E15: ='LA Data view'!L9 -> 215617.407 | K15: 215617.407
A16: 7033 | B16: WOODLANDS SPECIAL SCHOOL | C16: 2017-09-01 | F16: ='LA Data view'!W9 -> 10158.89706 | G16: ='LA Data view'!M9 -> 253252.4453 | K16: 263411.3424
A17: 7033 | B17: WOODLANDS SPECIAL SCHOOL | C17: 2018-01-01 | H17: =+'LA Data view'!X9 -> -13222.5867 | I17: ='LA Data view'!N9 -> 175328.616 | K17: 162106.0293
A18: 7033 | B18: WOODLANDS SPECIAL SCHOOL | C18: 2018-03-01 | J18: =+'LA Data view'!Y9 -> 10641.39755 | K18: 10641.39755
A19: 7042 | B19: OAK FIELD SPECIAL SCHOOL | C19: 2017-05-01 | D19: ='LA Data view'!G10+'LA Data view'!AK10 -> 2271839 | E19: ='LA Data view'!O10 -> 1453798.066 | K19: 3725637.066
A20: 7042 | B20: OAK FIELD SPECIAL SCHOOL | C20: 2017-09-01 | F20: ='LA Data view'!W10 -> 9274.297302 | K20: 9274.297302
A21: 7042 | B21: OAK FIELD SPECIAL SCHOOL | C21: 2018-01-01 | H21: =+'LA Data view'!X10 -> -14417.58666 | K21: -14417.58666
A22: 7042 | B22: OAK FIELD SPECIAL SCHOOL | C22: 2018-03-01 | J22: =+'LA Data view'!Y10 -> 23780.96472 | K22: 23780.96472

Sheet Payment request (hidden)
A3: WESTBURY SPECIAL SCHOOL
A4: NETHERGATE SCHOOL
A5: ROSEHILL SPECIAL SCHOOL
A6: WOODLANDS SPECIAL SCHOOL
A7: OAK FIELD SPECIAL SCHOOL
A10: Supplier | B10: Address | C10: Supplier Number | D10: Description | E10: Value
A11: Nethergate School (Academy) | B11: Swansdowne Drive, Clifton, Nottingham, NG11 8HX | C11: 169625
A12: Raleigh Learning Trust | B12: C/O Woodlands School, Beechdale Road, NOTTINGHAM NG8 3EZ | C12: 248852 | D12: Westbury Spring Term Top-Up Final | E12: 18158.42928 | F12: N-E-0349-052-468-0
A13: Raleigh Learning Trust | B13: C/O Woodlands School, Beechdale Road, NOTTINGHAM NG8 3EZ | C13: 248852 | D13: Woodlands Spring Term Top-Up Final | E13: 10641.39755 | F13: N-E-0349-056-468-0
D14: Total | E14: =SUM(E11:E13) -> 28799.82683
D17: Charge
D18: Nethergate Spring Term Top-Up Final | E18: -329.32 | F18: N-E-0349-053-468-0

Sheet VIRE (hidden)
A1: Reason for virement | B1: Special Schools Autumn Term FinalTop-Up Funding
A2: User's Initials | B2: CJW | C2: Max 4 characters
A3: Oracle Batch Name | B3: =LEFT(B9,2)&" "&MID(B1,1,21)&" "&TEXT(TODAY(),"ddmmm") -> 03 Special Schools Autum 22Mar
A4: Header | B4: Header Value
A5: Set of Books | B5: NCC Primary Ledger | I5: ="20"&MID(B7,8,2) & "/20" &RIGHT(B7,2) -> 2017/2018
A6: Financial Year | B6: 2018 | C6: Start Period | D6: 11-2018 | I6: Balance £50,000
A7: Budget Version | B7: NCC_BL_17/18 | I7: Balance £500
A8: Budget Organisation | B8: NCC Budget Org | I8: Internal Balance
A9: Reason Code | B9: 03-Temporary/OneOff Virement | I9: Fund Type Balance
A10: Reason Type | B10: Schools | H10: Total Amount: | I10: =SUM(I13:I65525) -> 0
A12: Budget Upload Type (P = Profile) | B12: Org. | C12: Dept. | D12: Cost Centre | E12: Analysis | F12: Corporate Subjective | G12: Detailed Subjective | H12: Profile Code | I12: Annual Amount | J12: ACCOUNT TYPE | K12: Fund Type Check | L12: Allow Budget? | M12: Is Cost Centre Text Format?
A13: =+[16]VIRE!A15 -> P | B13: =+[16]VIRE!B15 -> N | C13: =+[16]VIRE!C15 -> E | D13: =+[16]VIRE!D15 -> 0345 | E13: 054 | F13: =+[16]VIRE!F15 -> 499 | G13: =+[16]VIRE!G15 -> 0 | H13: =+[16]VIRE!H15 -> MONTHLY | I13: -27323 | M13: Rosehill
A14: =+[16]VIRE!A18 -> P | B14: =+[16]VIRE!B18 -> N | C14: =+[16]VIRE!C18 -> E | D14: =+[16]VIRE!D18 -> 0054 | E14: =+[16]VIRE!E18 -> 000 | F14: =+[16]VIRE!F18 -> 091 | G14: =+[16]VIRE!G18 -> 3 | H14: =+[16]VIRE!H18 -> MONTHLY | I14: 27323 | M14: Rosehill
A15: =+[16]VIRE!A17 -> P | B15: =+[16]VIRE!B17 -> N | C15: =+[16]VIRE!C17 -> E | D15: 0345 | E15: 051 | F15: =+[16]VIRE!F17 -> 091 | G15: =+[16]VIRE!G17 -> 3 | H15: =+[16]VIRE!H17 -> MONTHLY | I15: -23781 | M15: Oak Field School
A16: =+[16]VIRE!A20 -> P | B16: =+[16]VIRE!B20 -> N | C16: =+[16]VIRE!C20 -> E | D16: =+[16]VIRE!D20 -> 0051 | E16: =+[16]VIRE!E20 -> 000 | F16: =+[16]VIRE!F20 -> 091 | G16: =+[16]VIRE!G20 -> 3 | H16: =+[16]VIRE!H20 -> MONTHLY | I16: 23781 | M16: Oak Field School
